[Event "FIDE World School-ch O-17 2025"]
[Site "Vrnjacka Banja"]
[Date "2025.03.24"]
[Round "5.4"]
[White "Orgilon Batsaikhan"]
[Black "Andjelkovic, Aleksandar M"]
[Result "1-0"]
[Annotator "TA"]
[ECO "B47"]
[WhiteElo "2024"]
[BlackElo "1930"]
[PlyCount "111"]
[EventDate "2025.03.19"]
[EventType "swiss"]
[EventCountry "SRB"]
[SourceTitle "playchess.com"]
[Source "ChessBase"]
[SourceQuality "1"]
[TimeControl "5400+30"]

{[%evp 12,111,54,8,14,10,10,26,22,16,52,35,43,52,93,76,65,65,94,106,74,62,64,45,38,37,38,20,176,158,113,85,154,27,151,100,56,58,64,58,101,52,56,-18,-18,-21,-25,-25,-25,-26,-24,-15,-26,-25,-23,-19,-2,-2,0,0,7,0,0,0,27,8,268,263,561,561,538,561,227,405,452,165,516,531,372,289,445,450,382,345,610,572,440,241,606,413,1427,1308,1572,895,6091,5097,29964,5097,29988,29986,29986,5543]} 1. e4 {[%emt 0:00:03]} c5 {[%emt 0:00:14]} 2. Nf3 {[%emt 0:00:06]} e6 {[%emt 0:00:14]} 3. d4 {[%emt 0:00:06]} cxd4 {[%emt 0:00:09]} 4. Nxd4 {[%emt 0:00:06]} Nc6 {[%emt 0:00:24]} 5. Nc3 {[%emt 0:00:08]} Qc7 {[%emt 0:00:18]} 6. f4 {[%emt 0:00:12]} a6 {[%emt 0:01:02]} 7. Nxc6 {[%emt 0:00:25]} (7. a3 $14) 7... bxc6 $11 {[%emt 0:00:48] B47: Sicilian: Taimanov: 5 Nc3 Qc7 6 f4, 6 g3 and 6 Be2.} 8. Bd3 {[%emt 0:00:07]} d5 {[%emt 0:13:15]} 9. O-O {[%emt 0:00:15]} Bc5+ {[%emt 0:09:13] White has an edge.} 10. Kh1 {[%emt 0:00:41]} Ne7 {[%emt 0:03:16]} 11. Na4 $146 {[%emt 0:03:20]} ({Predecessor:} 11. b3 O-O 12. Bb2 Bd6 13. Qg4 f5 14. exf5 exf5 15. Qg3 Ng6 16. Ne2 c5 17. h4 {0-1 Veiga,J (2377)-Ferreira,H (2104) POR-ch Blitz 2022 (8)}) 11... Ba7 {[%emt 1:07:07]} 12. c4 {[%emt 0:05:47]} dxc4 {[%emt 0:00:00]} 13. Bxc4 {[%emt 0:00:38][%cal Of4f5]} O-O {[%emt 0:00:00]} 14. Qe2 $36 {[%emt 0:02:31][%cal Oc1e3][%mdl 2048] White has some pressure. White is more active.} Bd4 {[%emt 0:00:00]} 15. Be3 $1 {[%emt 0:01:33]} c5 {[%emt 0:00:00]} 16. Rac1 {[%emt 0:00:16]} Qa5 {[%emt 0:00:00]} 17. Bb3 {[%emt 0:01:59]} Bd7 $1 {[%emt 0:00:00][%cal Bc8d7,Bd7b5,Bb5d3,Bd3e4][%mdl 32]} 18. Nxc5 {[%emt 0:01:21]} Bb5 {[%emt 0:00:00]} 19. Nd3 {[%emt 0:18:19]} Bxb2 {[%emt 0:00:00]} 20. Qxb2 $18 {[%emt 0:01:01]} Bxd3 {[%emt 0:00:00]} 21. Rfe1 {[%emt 0:00:43]} Rac8 {[%emt 0:00:00]} (21... Bxe4 $2 22. Bc5 $18 (22. Bd4 Qf5 $14)) (21... Rfc8 $142) 22. Bd4 {[%emt 0:03:00]} (22. Bd2 $16 Qb5 23. Bc3) 22... Rfd8 {[%emt 0:00:00]} (22... Rxc1 $11 {remains equal.} 23. Rxc1 Bxe4) 23. Bxg7 {[%emt 0:17:10]} ({White has to play} 23. Bc3 $1 {[%cal Rc3a5]} Qb5 24. f5 (24. Bxg7 Rxc1 25. Rxc1 Bxe4 $16)) 23... Rxc1 $16 {[%emt 0:00:00]} 24. Rxc1 {[%emt 0:00:03]} Bxe4 {[%emt 0:00:00]} 25. Bc3 {[%emt 0:02:10] Prevents Rd2. This pair of bishops is nice.} Qb6 {[%emt 0:00:00]} 26. Qe2 {[%emt 0:03:20] Prevents Qe3.} (26. Re1 $16 Bd5 27. Bf6) 26... Qc6 $14 {[%emt 0:00:00]} 27. Bb2 {[%emt 0:02:52] [#]} (27. Qg4+ $14 Ng6 28. f5 exf5 29. Qg5) 27... Bxg2+ $1 $11 {[%emt 0:00:00]} 28. Kg1 $1 {[%emt 0:08:07]} Qe4 {[%emt 0:00:00]} (28... Bf3 $2 29. Qe5 Qb6+ 30. Rc5 $18) 29. Qxe4 {[%emt 0:01:55]} Bxe4 {[%emt 0:00:00]} 30. Bf6 {[%emt 0:00:02]} Rc8 {[%emt 0:00:00]} 31. Rxc8+ {[%emt 0:07:17]} Nxc8 {[%emt 0:00:00][%mdl 4096] Endgame KBB-KBN. Black is a pawn up.} 32. Kf2 {[%emt 0:00:02]} Nb6 {[%emt 0:00:00]} 33. Bd8 {[%emt 0:03:58]} Nd7 {[%emt 0:05:56]} 34. Ke3 {[%emt 0:02:41]} Bb7 {[%emt 0:01:17]} 35. Kd4 {[%emt 0:01:04]} Kg7 {[%emt 0:01:33]} 36. a4 {[%emt 0:00:44][%cal Ba2a4,Ba4a5][%mdl 32]} Bc6 {[%emt 0:00:51]} 37. Bc2 {[%emt 0:01:41]} Nf6 {[%emt 0:01:51]} 38. Kc5 {[%emt 0:01:06]} Bd7 $2 {[%emt 0:01:00][%mdl 8192] [#] White leaves nothing to chance now.} (38... Be8 $1 $11 {and Black has nothing to worry.}) 39. Kd6 $1 $18 {[%emt 0:01:55]} (39. Kb6 Nd5+ 40. Ka5 f5 $11) 39... Be8 $2 {[%emt 0:00:27]} (39... Bxa4 40. Bxa4 Ng4) 40. Bxf6+ {[%emt 0:01:02]} Kxf6 {[%emt 0:00:04] KB-KB. Black is a pawn up.} 41. a5 $1 {[%emt 0:00:01]} Bb5 {[%emt 0:01:17] Against Bd3} 42. Bxh7 {[%emt 0:00:06]} Be2 {[%emt 0:00:27]} 43. Be4 $2 {[%emt 0:00:12]} (43. Bc2 Bb5 44. h4) 43... Bf1 $2 {[%emt 0:00:40]} (43... Kg7 {is tougher.} 44. Ke7 Bc4) 44. h4 {[%emt 0:02:51][%cal Bh2h4,Bh4h5][%mdl 32]} Be2 {[%emt 0:00:20]} 45. Bc2 {[%emt 0:00:12]} Kg7 {[%emt 0:00:14] [#]} (45... Bc4 $142 46. h5 Kg7) 46. Ke7 $1 {[%emt 0:00:08]} Bc4 {[%emt 0:00:55]} 47. Bd1 {[%emt 0:03:46] Inhibits Be2.} Kg6 {[%emt 0:00:22] Inhibits Bh5+.} (47... f6 48. Kd6 Kg6) 48. h5+ {[%emt 0:01:23]} Kg7 {[%emt 0:00:11]} 49. Bf3 {[%emt 0:00:08]} (49. Bg4 $142 {and Bd1 would now be decisive} Kh6 50. Kf6 (50. Kxf7 e5+ 51. Ke7 exf4 $11)) 49... f5 $2 {[%emt 0:01:04]} (49... Bd3 50. h6+ Kg6) 50. Bd1 {[%emt 0:00:06]} Bd5 {[%emt 0:00:30]} (50... Kh7 $142 51. Kd6 Kh6) 51. Be2 {[%emt 0:00:07]} Kh6 {[%emt 0:00:12]} 52. Kf6 {[%emt 0:00:05]} Bb3 {[%emt 0:00:15]} 53. Bxa6 {[%emt 0:00:25]} Kxh5 {[%emt 0:00:11]} 54. Bb7 {[%emt 0:00:03] Intending a6 and mate.} Bd5 {[%emt 0:01:10]} 55. a6 {[%emt 0:00:04]} Kg4 {[%emt 0:00:23]} 56. Ke5 {[%emt 0:00:05] Weighted Error Value: White=0.19 (very precise) /Black=1.10  Loses game:     	---       	Black=1      Mistake:       	White=5     	Black=9      Inaccurate:     	---       	Black=4      OK:         	White=15    	Black=13     Best:        	White=5     	Black=5      Strong:       	White=5     	Black=1      Brilliant:      	---       	Black=1} (56. Bxd5 $142 exd5 57. Ke5 (57. a7 Kxf4 58. a8=Q Ke4 59. Qe8+ Kd4 60. Kxf5 Kc4 61. Ke5 d4 62. Qa4+ Kd3) 57... Kf3 58. a7 (58. Kxd5 Kg4 59. a7 Kxf4 60. a8=Q Kg3 61. Qa3+ Kg2 62. Ke5 Kg1 63. Qe3+ Kg2) 58... Ke3 59. a8=Q (59. a8=B d4 $18) 59... d4 60. Qa7 (60. Kxf5 Kd3 61. Qc6 Ke2 62. Qe4+ Kd2 63. Qxd4+ Kc2 64. Ke4 Kb3 65. Kd3 Ka2 66. Kc3 Kb1 67. Qb6+ Kc1 68. Qg1#) 60... Kf3 61. Qa3+ (61. Qxd4 Kg2 62. Qd2+ Kg3 63. Kxf5 Kh3 64. Qe2 Kg3 65. Ke4 Kh4 66. Qg2 Kh5 67. Qg5#) 61... Kf2 62. Kxd4 (62. Qd3 Kg2 63. Kxf5 Kf2 64. Kg5 Kg1 65. Kg4 Kh2 66. Qd2+ Kh1 67. Kg3 Kg1 68. Qg2#)) 1-0

[Event "FIDE World School-ch O-17 2025"]
[Site "Vrnjacka Banja"]
[Date "2025.03.24"]
[Round "5.5"]
[White "Ljepic, Andrej"]
[Black "Hansana, K V Tharuka"]
[Result "1-0"]
[Annotator "TA"]
[ECO "B10"]
[WhiteElo "2337"]
[BlackElo "1674"]
[PlyCount "51"]
[EventDate "2025.03.19"]
[EventType "swiss"]
[EventCountry "SRB"]
[SourceTitle "playchess.com"]
[Source "ChessBase"]
[SourceQuality "1"]
[TimeControl "5400+30"]

{[%evp 9,51,18,15,0,0,0,19,-2,38,25,104,91,129,118,279,277,261,274,341,336,335,327,341,341,339,335,313,303,392,359,379,372,445,423,469,502,450,407,537,543,723,725,887,880]} 1. e4 {[%emt 0:00:03]} c6 {[%emt 0:00:07]} 2. d3 {[%emt 0:02:24]} d5 {[%emt 0:00:12]} 3. Nd2 {[%emt 0:00:25]} d4 {[%emt 0:07:00]} 4. Ngf3 {[%emt 0:07:52]} c5 {[%emt 0:03:44]} 5. Be2 {[%emt 0:02:46]} Nc6 {[%emt 0:02:13]} 6. O-O {[%emt 0:02:05] B10: Caro-Kann: 2 d3 and 2 c4.} e5 {[%emt 0:02:44]} 7. Nc4 {[%emt 0:00:28]} Qc7 {[%emt 0:10:19]} 8. a4 {[%emt 0:02:02] The position is equal.} g6 $146 {[%emt 0:04:51]} (8... Be6 9. b3 Bxc4 10. bxc4 Nf6 11. Nh4 g6 12. f4 Bg7 13. Rb1 O-O 14. f5 b6 {1-0 Amigo Barbera,F-Espinosa Coll,J Sant Boi op Sant Boi de Llobregat 1997 (6)}) 9. c3 {[%emt 0:01:18]} dxc3 {[%emt 0:04:11]} (9... f6 $11 {keeps the balance.}) 10. bxc3 $16 {[%emt 0:00:16][%cal Bb2c3,Bc3d4,Bd4d5][%mdl 32] d4 would now be deadly.} Bg7 {[%emt 0:00:56]} 11. Be3 {[%emt 0:05:00] White is more active.} Qe7 {[%emt 0:15:03]} (11... Be6 $16) 12. d4 $18 {[%emt 0:07:58]} exd4 {[%emt 0:02:44]} 13. cxd4 {[%emt 0:00:17]} Nh6 {[%emt 0:05:11] [#]} 14. d5 {[%emt 0:06:12]} Nd4 {[%emt 0:09:40]} 15. Nxd4 {[%emt 0:02:01]} cxd4 {[%emt 0:00:07]} 16. Bxd4 {[%emt 0:00:47]} O-O {[%emt 0:00:17]} 17. Bxg7 {[%emt 0:01:43]} Kxg7 {[%emt 0:00:02]} 18. Qd4+ {[%emt 0:00:11]} Kg8 {[%emt 0:00:12]} 19. a5 {[%emt 0:07:53]} Re8 {[%emt 0:00:50]} 20. Bd3 {[%emt 0:02:21]} Bd7 {[%emt 0:01:23]} 21. Rab1 {[%emt 0:00:23][%cal Ba1b1,Bb1b2,Bb2b5][%mdl 32] Repels Bb5} Bg4 {[%emt 0:01:43]} 22. f3 {[%emt 0:00:55]} Bc8 {[%emt 0:00:56]} 23. Rb2 {[%emt 0:03:05]} g5 {[%emt 0:01:52]} 24. d6 {[%emt 0:02:28] White is clearly winning.} Qe6 {[%emt 0:00:27]} 25. Rb5 {[%emt 0:00:10]} f6 {[%emt 0:01:13] [#]} 26. Nb6 $1 {[%emt 0:00:19][%mdl 512] Black got outplayed after the opening.   Weighted Error Value: White=0.07 (flawless) /Black=0.63  Loses game:     	---       	Black=1      Mistake:       	---       	Black=1      Inaccurate:     	---       	Black=4      OK:         	White=13    	Black=4} 1-0

[Event "FIDE World School-ch O-17 2025"]
[Site "Vrnjacka Banja"]
[Date "2025.03.24"]
[Round "5.6"]
[White "Taran, Egor A"]
[Black "Zdravkovic, Filip"]
[Result "1-0"]
[Annotator "TA"]
[ECO "B72"]
[WhiteElo "1961"]
[BlackElo "1963"]
[PlyCount "143"]
[EventDate "2025.03.19"]
[EventType "swiss"]
[EventCountry "SRB"]
[SourceTitle "playchess.com"]
[Source "ChessBase"]
[SourceQuality "1"]
[TimeControl "5400+30"]

{[%evp 10,143,45,23,48,61,60,62,54,59,56,64,53,52,75,77,98,95,96,89,95,58,56,70,85,97,93,91,99,96,100,82,109,87,110,90,106,117,120,111,130,132,163,114,137,137,183,180,181,183,163,178,215,149,229,158,195,77,77,77,77,77,110,85,135,125,213,201,192,191,286,278,280,268,283,287,405,404,396,396,542,527,542,395,383,365,336,270,248,0,533,483,539,825,719,692,692,619,608,555,608,604,601,575,567,577,547,356,702,678,678,646,783,780,655,613,1037,988,1011,1020,1488,1402,5310,5310,5310,5310,5306,5306,5306,5306,5306,5306,29987,29987,29988,29987]} 1. e4 {[%emt 0:00:02]} c5 {[%emt 0:00:11]} 2. Nf3 {[%emt 0:00:04]} d6 {[%emt 0:00:19]} 3. d4 {[%emt 0:00:03]} cxd4 {[%emt 0:00:06]} 4. Nxd4 {[%emt 0:00:03]} Nf6 {[%emt 0:00:24]} 5. Nc3 {[%emt 0:00:04]} g6 {[%emt 0:00:09]} 6. Be3 {[%emt 0:00:08]} Nc6 {[%emt 0:01:36] B72: Sicilian Dragon: 6 Be3, lines with h3+Bc4 and sidelines.} 7. f3 {[%emt 0:00:07] Repels Ng4} h5 {[%emt 0:01:31]} 8. Qd2 {[%emt 0:00:05]} Nxd4 {[%emt 0:00:41] White is slightly better.} 9. Bxd4 {[%emt 0:00:06]} Bh6 {[%emt 0:01:22]} 10. Bb5+ {[%emt 0:00:42]} Bd7 {[%emt 0:01:20]} 11. Qe2 {[%emt 0:00:11]} O-O {[%emt 0:05:05] [#]} 12. Bxf6 $146 {[%emt 0:16:41]} ({Predecessor:} 12. Rd1 Bc6 13. e5 Ne8 14. Bc4 Qa5 15. e6 f5 16. O-O Nc7 17. Rfe1 b5 18. Bb3 {1-0 Vasquez Toledo,C (2274)-Martinez Serna,J (2004) American Continental 18th 2024 (5)}) 12... exf6 {[%emt 0:00:27]} 13. Bxd7 {[%emt 0:00:08]} Qxd7 {[%emt 0:00:06]} 14. Nd5 {[%emt 0:00:13]} Bg7 {[%emt 0:15:40]} 15. O-O {[%emt 0:01:25][%cal Be1g1,Bg1h1,Bh1g2][%mdl 32] White is more active.} Rfe8 {[%emt 0:01:29]} 16. Qd3 {[%emt 0:01:50]} Rac8 {[%emt 0:04:02]} 17. c3 {[%emt 0:04:24]} Qc6 {[%emt 0:10:54]} 18. Rad1 {[%emt 0:06:49][%csl Od5] Strong Square White (d5)} Qc5+ {[%emt 0:02:35]} 19. Kh1 {[%emt 0:00:29]} b5 {[%emt 0:01:30]} 20. Rfe1 {[%emt 0:18:47]} a5 {[%emt 0:05:06]} 21. a3 {[%emt 0:06:08]} Rb8 {[%emt 0:13:34][%cal Bc8b8,Bb8b7,Bb7d7][%mdl 32]} 22. g3 {[%emt 0:10:20]} Kh7 {[%emt 0:11:58]} 23. Kg2 {[%emt 0:01:44]} Kg8 {[%emt 0:00:10]} 24. Re2 {[%emt 0:04:52]} Rb7 {[%emt 0:02:36]} 25. Rdd2 {[%emt 0:12:05]} Rd7 {[%emt 0:02:02]} 26. Qe3 {[%emt 0:03:11]} ({White should play} 26. b4 $18 axb4 27. axb4 (27. cxb4 Qc6 $18)) 26... Red8 {[%emt 0:05:44]} 27. Qf4 {[%emt 0:03:50]} a4 {[%emt 0:05:37]} (27... Re8 $16) 28. Nxf6+ $18 {[%emt 0:00:44]} Bxf6 {[%emt 0:00:07]} 29. Qxf6 {[%emt 0:00:01] White attacks} Qe5 {[%emt 0:00:23] [#]} 30. Qh4 {[%emt 0:02:35]} Re8 {[%emt 0:00:45]} 31. Qf4 {[%emt 0:00:27]} Qc5 {[%emt 0:01:45]} (31... Qxf4 $16 {was necessary.} 32. gxf4 Kf8) 32. Qe3 {[%emt 0:00:13]} Qc6 {[%emt 0:00:51]} 33. Rd5 {[%emt 0:00:58]} (33. Rd4 $18) 33... Qxd5 $16 {[%emt 0:00:35]} 34. exd5 {[%emt 0:00:01]} Rxe3 {[%emt 0:00:10]} 35. Rxe3 {[%emt 0:00:03][%mdl 4096] Endgame KR-KR. White is a pawn up.} Kg7 {[%emt 0:01:36]} 36. Re8 {[%emt 0:00:26]} Rb7 {[%emt 0:01:42] Prevents Rb8} (36... Rc7 $142) 37. Rd8 {[%emt 0:00:25]} Rb6 {[%emt 0:00:18]} (37... Kf6 $16) 38. f4 $18 {[%emt 0:00:44]} Kf6 {[%emt 0:00:37]} 39. Rd7 {[%emt 0:00:44] Prevents Rb7.} Kg7 {[%emt 0:00:07]} (39... b4 $142 40. axb4 (40. cxb4 Rb5 $18) 40... Rb5) 40. Kf3 {[%emt 0:00:17]} Kf6 {[%emt 0:00:44]} 41. Ke4 {[%emt 0:00:13]} Kg7 {[%emt 0:00:11]} 42. h3 {[%emt 0:01:03][%cal Bh2h3,Bh3g4,Bg4g5][%mdl 32]} Kf6 {[%emt 0:01:56]} (42... Kf8 $142 43. Kd4 Ke8) 43. g4 {[%emt 0:00:09]} hxg4 {[%emt 0:00:06]} 44. hxg4 {[%emt 0:00:02]} Kg7 {[%emt 0:00:08]} 45. g5 {[%emt 0:00:41]} Kf8 {[%emt 0:00:43]} 46. Kd4 {[%emt 0:00:19]} Ke8 {[%emt 0:00:21]} 47. Rc7 {[%emt 0:00:05]} Rb8 {[%emt 0:00:10]} 48. Ke4 {[%emt 0:00:51]} Kf8 {[%emt 0:00:06]} 49. Rd7 $2 {[%emt 0:00:55]} (49. Kd3) 49... Rb6 {[%emt 0:01:04]} 50. f5 {[%emt 0:00:38][%cal Bf4f5,Bf5f6][%mdl 32]} Kg7 {[%emt 0:01:03]} 51. f6+ {[%emt 0:01:27]} Kg8 {[%emt 0:00:13]} 52. Rd8+ {[%emt 0:00:05]} Kh7 {[%emt 0:00:05]} 53. Rf8 {[%emt 0:00:10]} Rb7 {[%emt 0:00:05]} 54. Kd4 {[%emt 0:00:17]} Rc7 {[%emt 0:00:14]} 55. Rd8 {[%emt 0:02:38]} Rc4+ {[%emt 0:00:25]} 56. Kd3 {[%emt 0:00:08]} Rg4 {[%emt 0:00:29]} 57. Rxd6 {[%emt 0:01:51]} Rxg5 {[%emt 0:00:06]} 58. Rd7 {[%emt 0:00:06][%cal Od5d6] and d6! should not be overlooked} Kg8 $2 {[%emt 0:00:43]} (58... Rf5 59. Rxf7+ Kg8 60. Rg7+ Kf8) 59. Rd8+ {[%emt 0:00:11]} Kh7 {[%emt 0:00:07]} 60. d6 {[%emt 0:03:06]} Rd5+ {[%emt 0:00:46]} 61. Ke4 {[%emt 0:00:33]} Rd2 {[%emt 0:00:26]} 62. Ke5 {[%emt 0:02:28]} Re2+ {[%emt 0:02:21]} 63. Kd5 {[%emt 0:00:07]} Rd2+ {[%emt 0:00:03]} 64. Kc6 {[%emt 0:00:16]} g5 {[%emt 0:00:37][%cal Bg6g5,Bg5g4][%mdl 32]} 65. d7 {[%emt 0:00:17]} g4 {[%emt 0:00:08]} 66. Re8 {[%emt 0:00:10]} ({Stronger than} 66. Kxb5 g3 67. Re8 (67. Kxa4 $2 {too greedy.} g2 $19) 67... g2 $14) 66... Kg6 {[%emt 0:00:46]} 67. d8=Q {[%emt 0:00:16]} Rxd8 {[%emt 0:00:06]} 68. Rxd8 {[%emt 0:00:04]} Kxf6 {[%emt 0:00:05]} 69. Rg8 {[%emt 0:00:07]} Kf5 {[%emt 0:00:07]} 70. Kxb5 {[%emt 0:00:17][%cal Oc3c4] c4! would kill now.} Kf4 {[%emt 0:00:06]} 71. c4 {[%emt 0:00:07][%cal Bc3c4,Bc4c5][%mdl 32]} f5 {[%emt 0:00:06]} 72. c5 {[%emt 0:00:03] Weighted Error Value: White=0.24 (precise) /Black=0.31  Mistake:       	White=3     	Black=7      Inaccurate:     	White=4     	Black=3      OK:         	White=18    	Black=12     Best:        	White=3     	Black=4      Strong:       	White=1     	---} 1-0

[Event "FIDE World School-ch O-17 2025"]
[Site "Vrnjacka Banja"]
[Date "2025.03.24"]
[Round "5.7"]
[White "Panda, Barnabas"]
[Black "Kanacki, Vuk"]
[Result "1-0"]
[Annotator "TA"]
[ECO "E44"]
[WhiteElo "2147"]
[BlackElo "1956"]
[PlyCount "77"]
[EventDate "2025.03.19"]
[EventType "swiss"]
[EventCountry "SRB"]
[SourceTitle "playchess.com"]
[Source "ChessBase"]
[SourceQuality "1"]
[TimeControl "5400+30"]

{[%evp 12,77,28,0,61,63,86,86,86,86,86,80,85,82,94,94,94,90,90,40,83,31,56,64,87,86,88,87,103,63,78,3,9,11,253,46,139,86,91,87,110,110,97,93,101,98,112,63,98,103,95,94,127,64,89,64,78,87,89,28,164,158,177,167,163,165,202,189]} 1. d4 {[%emt 0:00:08]} Nf6 {[%emt 0:00:07]} 2. c4 {[%emt 0:00:08]} e6 {[%emt 0:00:08]} 3. Nc3 {[%emt 0:00:23]} Bb4 {[%emt 0:00:12]} 4. e3 {[%emt 0:00:10]} b6 {[%emt 0:00:20]} 5. Nge2 {[%emt 0:00:36]} Bb7 {[%emt 0:00:29]} 6. a3 {[%emt 0:00:23]} Be7 {[%emt 0:00:56]} 7. Ng3 {[%emt 0:04:33]} c5 {[%emt 0:13:27] E44: Nimzo-Indian: Rubinstein: 4...b6 5 Ne2.} (7... d5 $11) 8. d5 $14 {[%emt 0:04:19]} exd5 {[%emt 0:00:28]} 9. cxd5 {[%emt 0:00:31]} d6 {[%emt 0:00:32] White is better.} 10. e4 {[%emt 0:02:24]} O-O {[%emt 0:00:30]} 11. Bc4 $146 {[%emt 0:08:45]} ({Predecessor:} 11. Be2 Ba6 12. Bxa6 Nxa6 13. O-O Re8 14. Re1 Bf8 15. Nf5 Nc7 16. Bg5 h6 17. Bf4 {1-0 Hecht,H (2337)-Wawrinsky,L (1692) Bad Wiessee Seniors op 2012 (1)}) 11... a6 {[%emt 0:01:55]} 12. a4 {[%emt 0:00:54]} Nbd7 {[%emt 0:00:09]} 13. f4 {[%emt 0:01:39]} Re8 {[%emt 0:01:19]} 14. O-O {[%emt 0:02:16]} Bf8 {[%emt 0:02:07]} 15. Qf3 {[%emt 0:14:56]} (15. Re1 $16) 15... g6 {[%emt 0:08:06]} 16. Bd2 {[%emt 0:56:25]} (16. Re1 $16) 16... Bg7 {[%emt 0:01:18]} 17. Rae1 {[%emt 0:00:00]} Qc7 {[%emt 0:05:13]} 18. Nh1 {[%emt 0:00:00][%cal Bg3h1,Bh1f2,Bf2e4][%mdl 32]} Re7 {[%emt 0:08:42]} 19. Nf2 {[%emt 0:00:00]} Rae8 {[%emt 0:01:09]} 20. Qd3 {[%emt 0:00:00]} Qc8 {[%emt 0:11:17] [#]} 21. e5 {[%emt 0:00:00] White plays in the center} dxe5 $11 {[%emt 0:00:29]} 22. Nfe4 {[%emt 0:00:00] and f5 would now be decisive} Qb8 $2 {[%emt 0:04:49]} (22... exf4 $11 {and Black has nothing to worry.} 23. Nd6 Qa8) 23. d6 $2 {[%emt 0:00:00]} ({Weaker is} 23. Bxa6 Nxe4 24. Rxe4 Nf6 $17) ({White has to play} 23. f5 $18) 23... Re6 {[%emt 0:00:10]} 24. Bxe6 {[%emt 0:00:00]} (24. f5 $142 gxf5 25. Rxf5) 24... Rxe6 {[%emt 0:00:02]} 25. f5 {[%emt 0:00:00]} gxf5 {[%emt 0:04:54]} 26. Rxf5 {[%emt 0:00:00]} Nxe4 {[%emt 0:00:14]} 27. Nxe4 {[%emt 0:00:00]} Bxe4 {[%emt 0:00:25]} 28. Qxe4 {[%emt 0:00:00]} Qxd6 {[%emt 0:00:46]} 29. Bc3 {[%emt 0:00:00]} ({White should try} 29. Be3 $16) 29... Qc6 {[%emt 0:04:16]} 30. Qxc6 {[%emt 0:00:00]} Rxc6 {[%emt 0:00:31]} 31. Rd1 {[%emt 0:00:00] Prevents Rd6} Rc7 {[%emt 0:00:04]} 32. Rd6 {[%emt 0:00:00]} (32. a5 $16) 32... a5 {[%emt 0:00:28]} 33. Kf1 {[%emt 0:00:00][%mdl 1024] White has strong compensation.} Kf8 {[%emt 0:00:21]} 34. Re6 $36 {[%emt 0:00:00][%mdl 2048] White has strong initiative. White has more active pieces.} c4 {[%emt 0:02:24]} 35. h4 {[%emt 0:00:00]} (35. Ke2 $16) 35... Rb7 {[%emt 0:01:23]} (35... Rc8 $11) 36. Rc6 $18 {[%emt 0:00:11] White is clearly better.} Nc5 {[%emt 0:01:08]} 37. Bxe5 {[%emt 0:01:41]} Bxe5 {[%emt 0:00:44]} 38. Rxe5 {[%emt 0:00:07]} Nxa4 {[%emt 0:00:17]} 39. Rb5 {[%emt 0:00:17] Weighted Error Value: White=0.30/Black=0.35  Loses game:     	---       	Black=1      Missed win:     	White=1     	---        Mistake:       	White=7     	Black=2      Inaccurate:     	White=1     	Black=1      OK:         	White=9     	Black=6      Best:        	White=5     	Black=4} (39. Rxc4 Nc5 40. Rh5 f6) 1-0

[Event "FIDE World School-ch O-17 2025"]
[Site "Vrnjacka Banja"]
[Date "2025.03.24"]
[Round "5.8"]
[White "Gusev, Mikhail"]
[Black "Tadic, Stefan M"]
[Result "1-0"]
[Annotator "NA RC"]
[ECO "B76"]
[WhiteElo "2250"]
[BlackElo "1906"]
[PlyCount "65"]
[EventDate "2025.03.19"]
[EventType "swiss"]
[EventCountry "SRB"]
[SourceTitle "playchess.com"]
[Source "ChessBase"]
[SourceQuality "1"]
[TimeControl "5400+30"]

1. e4 {[%emt 0:00:01]} c5 {[%emt 0:00:11]} 2. Nf3 {[%emt 0:00:05]} d6 {[%emt 0:00:06]} 3. d4 {[%emt 0:00:02]} cxd4 {[%emt 0:00:06]} 4. Nxd4 {[%emt 0:00:04]} Nf6 {[%emt 0:00:10]} 5. Nc3 {[%emt 0:00:04]} g6 {[%emt 0:00:08]} 6. Be3 {[%emt 0:00:05]} Bg7 {[%emt 0:00:05]} 7. f3 {[%emt 0:00:06]} O-O {[%emt 0:00:08]} 8. Qd2 {[%emt 0:00:03]} Nc6 {[%emt 0:00:09]} 9. O-O-O {[%emt 0:00:07]} d5 {[%emt 0:00:06]} 10. Nxc6 {[%emt 0:00:31]} bxc6 {[%emt 0:00:08]} 11. Bh6 {[%emt 0:00:06]} Rb8 {[%emt 0:06:01]} 12. Bxg7 {[%emt 0:01:21]} Kxg7 {[%emt 0:00:13]} 13. exd5 {[%emt 0:01:20]} cxd5 {[%emt 0:06:21]} 14. Nxd5 {[%emt 0:00:22]} Nxd5 {[%emt 0:00:48]} 15. Qxd5 {[%emt 0:00:07]} Qc7 {[%emt 0:00:10]} 16. Bc4 {[%emt 0:04:13]} Kg8 {[%emt 0:01:27]} 17. Bb3 {[%emt 0:02:37]} Be6 {[%emt 0:05:00]} 18. Qd3 {[%emt 0:00:13]} Bf5 {[%emt 0:01:40]} 19. Qc4 {[%emt 0:00:41]} Qb6 {[%emt 0:01:14]} 20. g4 {[%emt 0:05:24]} Be6 {[%emt 0:00:54]} 21. Qd4 {[%emt 0:00:33]} Qc6 {[%emt 0:02:21]} 22. Bxe6 {[%emt 0:02:35]} Qxe6 {[%emt 0:00:45]} 23. b3 {[%emt 0:01:10]} Qc6 {[%emt 0:00:33]} 24. Rhf1 {[%emt 0:00:15]} Rfc8 {[%emt 0:00:18]} 25. Rf2 {[%emt 0:00:09]} a5 {[%emt 0:00:34]} 26. f4 {[%emt 0:05:32]} Rb4 {[%emt 0:00:58]} 27. Qe5 {[%emt 0:02:48]} Qb6 {[%emt 0:04:22]} 28. Rfd2 {[%emt 0:01:44]} e6 {[%emt 0:09:44]} 29. Kb2 {[%emt 0:04:42]} Rbc4 {[%emt 0:13:08]} 30. Qf6 {[%emt 0:05:52]} Rf8 {[%emt 0:01:10]} 31. f5 {[%emt 0:01:26]} a4 {[%emt 0:02:05]} 32. fxe6 {[%emt 0:07:08]} fxe6 {[%emt 0:13:51]} 33. Rd8 {[%emt 0:00:59]} 1-0